{"text_format":"1","workbook":"xlsx","n_sheets":2,"sheets":["Project Signature Sheet","Sheet1"],"not_rendered":{"charts":0,"images":30,"macros":1,"external_links":0,"defined_names":1,"comments":0,"pivot_tables":0},"unopened":[],"bounds":{"document_bytes":16777216,"sheet_cells":100000,"rows_first":2000,"rows_last":500,"rows_between":2000,"halvings":0,"cell_chars":16384,"cell_head_chars":4096},"cells_cut":0,"cells_raw":0,"read":"whole","date_system":"1900"}

{"sheet":"Project Signature Sheet","index":0,"n_rows":488,"n_cols":36,"rows_kept":488,"cut":false,"hidden":false,"merged":[[7,6,7,14],[7,1,7,3],[9,1,9,3],[10,1,10,3],[32,1,32,3],[225,5,247,9],[249,5,271,9],[273,5,295,9],[417,1,417,3],[55,1,55,3],[57,5,79,9],[81,5,103,9],[105,5,127,9],[129,5,151,9],[153,5,175,9],[177,5,199,9],[201,5,223,9],[297,5,319,9],[321,5,343,9]]}
[]
[]
[]
[]
[]
[]
[]
[null,"Project Signature Sheet",null,null,null,null,"Sheet Setup"]
[null,null,null,null,null,null,"Number of Plan File Rows Shown",null,null,null,10]
[null,"Contract ID 82024-113552 File Index",null,null,null,null,null,null,null,null,null,null,null,null,null,null,null,null,null,null,null,null,null,null,null,null,null,null,null,null,null,1,"N/A","N/A","Select","Yes"]
[null,"Plan Files",null,null,null,null,"Model Data Included in Contract?",null,null,null,"No",null,null,null,null,null,null,null,null,null,null,null,null,null,null,null,null,null,null,null,null,2,1,5,5,"No"]
[null,"File Name","Description","Notes",null,null,"Number of Model Data Rows if Yes",null,null,null,20,null,null,null,null,null,null,null,"File Name","Description","Notes",null,null,null,null,null,null,null,null,null,null,3,2,10,10]
[null,"113552_Bridge_1.pdf","Bridge Plans",null,null,null,null,null,null,null,null,null,null,null,null,null,null,{"$f":"IF(B13=\"\",\"\",MAX(R$12:R12)+1)","v":1},{"$f":"IFERROR(INDEX($B$13:$B$54,MATCH(ROW()-ROW($T$12),$R$13:$R$54,0)),\"\")","v":"113552_Bridge_1.pdf"},{"$f":"IFERROR(VLOOKUP(S13,$B$13:$D$54,2,FALSE),\"\")","v":"Bridge Plans"},{"$f":"IFERROR(VLOOKUP(S13,$B$13:$D$54,3,FALSE),\"\")","v":0},null,null,null,null,null,null,null,null,null,null,4,3,15,15]
[null,"113552_Bridge_2.pdf","Bridge Plans",null,null,null,"Consultant Signature Block Required?",null,null,null,"Yes",null,null,null,null,null,null,{"$f":"IF(B14=\"\",\"\",MAX(R$12:R13)+1)","v":2},{"$f":"IFERROR(INDEX($B$13:$B$54,MATCH(ROW()-ROW($T$12),$R$13:$R$54,0)),\"\")","v":"113552_Bridge_2.pdf"},{"$f":"IFERROR(VLOOKUP(S14,$B$13:$D$54,2,FALSE),\"\")","v":"Bridge Plans"},{"$f":"IFERROR(VLOOKUP(S14,$B$13:$D$54,3,FALSE),\"\")","v":0},null,null,null,null,null,null,null,null,null,null,5,4,20,20]
[null,"113552_Road_1.pdf","Road Plans","1-201",null,null,"Number of Consultant Signature Blocks if Yes",null,null,null,12,null,null,null,null,null,null,{"$f":"IF(B15=\"\",\"\",MAX(R$12:R14)+1)","v":3},"113552_Road_1.pdf","Road Plans","1-201",null,null,null,null,null,null,null,null,null,null,6,5]
[null,"113552_Road_2.pdf","Road Plans","202-359",null,null,null,null,null,null,null,null,null,null,null,null,null,{"$f":"IF(B16=\"\",\"\",MAX(R$12:R15)+1)","v":4},"113552_Road_2.pdf","Road Plans","202-359",null,null,null,null,null,null,null,null,null,null,7,6]
[null,"113552_Road_3.pdf","Road Plans","360-495",null,null,"Number of Representative Signatures Required",null,null,null,4,null,null,null,null,null,null,{"$f":"IF(B17=\"\",\"\",MAX(R$12:R16)+1)","v":5},"113552_Road_3.pdf","Road Plans","360-495",null,null,null,null,null,null,null,null,null,null,8,7]
[null,"113552_Road_4.pdf","Road Plans","496-632",null,null,null,null,null,null,null,null,null,null,null,null,null,{"$f":"IF(B18=\"\",\"\",MAX(R$12:R17)+1)","v":6},"113552_Road_4.pdf","Road Plans","496-632",null,null,null,null,null,null,null,null,null,null,9,8]
[null,null,null,null,null,null,null,null,null,null,null,null,null,null,null,null,null,{"$f":"IF(B19=\"\",\"\",MAX(R$12:R18)+1)","v":""},"","","",null,null,null,null,null,null,null,null,null,null,10,9]
[null,null,null,null,null,null,null,null,null,null,null,null,null,null,null,null,null,{"$f":"IF(B20=\"\",\"\",MAX(R$12:R19)+1)","v":""},"","","",null,null,null,null,null,null,null,null,null,null,null,10]
[null,null,null,null,null,null,null,null,null,null,null,null,null,null,null,null,null,{"$f":"IF(B21=\"\",\"\",MAX(R$12:R20)+1)","v":""},"","","",null,null,null,null,null,null,null,null,null,null,null,11]
[null,null,null,null,null,null,null,null,null,null,null,null,null,null,null,null,null,{"$f":"IF(B22=\"\",\"\",MAX(R$12:R21)+1)","v":""},"","","",null,null,null,null,null,null,null,null,null,null,null,12]
[null,null,null,null,null,null,null,null,null,null,null,null,null,null,null,null,null,{"$f":"IF(B23=\"\",\"\",MAX(R$12:R22)+1)","v":""},"","","",null,null,null,null,null,null,null,null,null,null,null,13]
[null,null,null,null,null,null,null,null,null,null,null,null,null,null,null,null,null,{"$f":"IF(B24=\"\",\"\",MAX(R$12:R23)+1)","v":""},"","","",null,null,null,null,null,null,null,null,null,null,null,14]
[null,null,null,null,null,null,null,null,null,null,null,null,null,null,null,null,null,{"$f":"IF(B25=\"\",\"\",MAX(R$12:R24)+1)","v":""},"","","",null,null,null,null,null,null,null,null,null,null,null,15]
[null,null,null,null,null,null,null,null,null,null,null,null,null,null,null,null,null,{"$f":"IF(B26=\"\",\"\",MAX(R$12:R25)+1)","v":""},"","",""]
[null,null,null,null,null,null,null,null,null,null,null,null,null,null,null,null,null,{"$f":"IF(B27=\"\",\"\",MAX(R$12:R26)+1)","v":""},"","",""]
[null,null,null,null,null,null,null,null,null,null,null,null,null,null,null,null,null,{"$f":"IF(B28=\"\",\"\",MAX(R$12:R27)+1)","v":""},"","",""]
[null,null,null,null,null,null,null,null,null,null,null,null,null,null,null,null,null,{"$f":"IF(B29=\"\",\"\",MAX(R$12:R28)+1)","v":""},"","",""]
[null,null,null,null,null,null,null,null,null,null,null,null,null,null,null,null,null,{"$f":"IF(B30=\"\",\"\",MAX(R$12:R29)+1)","v":""},"","",""]
[null,null,null,null,null,null,null,null,null,null,null,null,null,null,null,null,null,{"$f":"IF(B31=\"\",\"\",MAX(R$12:R30)+1)","v":""},"","",""]
[null,null,null,null,null,null,null,null,null,null,null,null,null,null,null,null,null,{"$f":"IF(B32=\"\",\"\",MAX(R$12:R31)+1)","v":""},"","",""]
[null,"Model Data",null,null,null,null,null,null,null,null,null,null,null,null,null,null,null,null,"","",""]
[null,"File Name","Description","Notes",null,null,null,null,null,null,null,null,null,null,null,null,null,null,"","",""]
[null,null,null,null,null,null,null,null,null,null,null,null,null,null,null,null,null,{"$f":"IF(B35=\"\",\"\",MAX(R$12:R34)+1)","v":""},"","",""]
[null,null,null,null,null,null,null,null,null,null,null,null,null,null,null,null,null,{"$f":"IF(B36=\"\",\"\",MAX(R$12:R35)+1)","v":""},"","",""]
[null,null,null,null,null,null,null,null,null,null,null,null,null,null,null,null,null,{"$f":"IF(B37=\"\",\"\",MAX(R$12:R36)+1)","v":""},"","",""]
[null,null,null,null,null,null,null,null,null,null,null,null,null,null,null,null,null,{"$f":"IF(B38=\"\",\"\",MAX(R$12:R37)+1)","v":""},"","",""]
[null,null,null,null,null,null,null,null,null,null,null,null,null,null,null,null,null,{"$f":"IF(B39=\"\",\"\",MAX(R$12:R38)+1)","v":""},"","",""]
[null,null,null,null,null,null,null,null,null,null,null,null,null,null,null,null,null,{"$f":"IF(B40=\"\",\"\",MAX(R$12:R39)+1)","v":""},"","",""]
[null,null,null,null,null,null,null,null,null,null,null,null,null,null,null,null,null,{"$f":"IF(B41=\"\",\"\",MAX(R$12:R40)+1)","v":""},"","",""]
[null,null,null,null,null,null,null,null,null,null,null,null,null,null,null,null,null,{"$f":"IF(B42=\"\",\"\",MAX(R$12:R41)+1)","v":""},"","",""]
[null,null,null,null,null,null,null,null,null,null,null,null,null,null,null,null,null,{"$f":"IF(B43=\"\",\"\",MAX(R$12:R42)+1)","v":""},"","",""]
[null,null,null,null,null,null,null,null,null,null,null,null,null,null,null,null,null,{"$f":"IF(B44=\"\",\"\",MAX(R$12:R43)+1)","v":""},"","",""]
[null,null,null,null,null,null,null,null,null,null,null,null,null,null,null,null,null,{"$f":"IF(B45=\"\",\"\",MAX(R$12:R44)+1)","v":""},"","",""]
[null,null,null,null,null,null,null,null,null,null,null,null,null,null,null,null,null,{"$f":"IF(B46=\"\",\"\",MAX(R$12:R45)+1)","v":""},"","",""]
[null,null,null,null,null,null,null,null,null,null,null,null,null,null,null,null,null,{"$f":"IF(B47=\"\",\"\",MAX(R$12:R46)+1)","v":""},"","",""]
[null,null,null,null,null,null,null,null,null,null,null,null,null,null,null,null,null,{"$f":"IF(B48=\"\",\"\",MAX(R$12:R47)+1)","v":""},"","",""]
[null,null,null,null,null,null,null,null,null,null,null,null,null,null,null,null,null,{"$f":"IF(B49=\"\",\"\",MAX(R$12:R48)+1)","v":""},"","",""]
[null,null,null,null,null,null,null,null,null,null,null,null,null,null,null,null,null,{"$f":"IF(B50=\"\",\"\",MAX(R$12:R49)+1)","v":""},"","",""]
[null,null,null,null,null,null,null,null,null,null,null,null,null,null,null,null,null,{"$f":"IF(B51=\"\",\"\",MAX(R$12:R50)+1)","v":""},"","",""]
[null,null,null,null,null,null,null,null,null,null,null,null,null,null,null,null,null,{"$f":"IF(B52=\"\",\"\",MAX(R$12:R51)+1)","v":""},"","",""]
[null,null,null,null,null,null,null,null,null,null,null,null,null,null,null,null,null,{"$f":"IF(B53=\"\",\"\",MAX(R$12:R52)+1)","v":""},"","",""]
[null,null,null,null,null,null,null,null,null,null,null,null,null,null,null,null,null,{"$f":"IF(B54=\"\",\"\",MAX(R$12:R53)+1)","v":""},"","",""]
[]
[null,"Consultant Design Signatures"]
[]
[null,"File Name","Description","Notes",null,"Access Engineering 387-391"]
[null,"113552_Road_3.pdf",{"$f":"IFERROR(VLOOKUP(B59,$B$13:$D$54,2,FALSE),\"\")","v":"Road Plans"},"387-391"]
[null,null,{"$f":"IFERROR(VLOOKUP(B60,$B$13:$D$54,2,FALSE),\"\")","v":""}]
[null,null,""]
[null,null,""]
[null,null,""]
[null,null,""]
[null,null,""]
[null,null,""]
[null,null,""]
[null,null,""]
[null,"The listed files have been prepared for the Michigan Department of Transportation by:"]
[]
[]
[]
[]
[null,"Logo"]
[]
[]
[null,null,"Annette Stroman, Project Manager"]
[null,null,"P.O. Box 26"]
[null,null,"Milford, MI 48381"]
[null,null,"248-684-1033"]
[]
[null,"File Name","Description","Notes",null,"FTCH 253-278, 281-282, 285, 290-292, 294, 297-299, 305-312, 317-324, 327, 329, 332, 334, "]
[null,"113552_Road_2.pdf",{"$f":"IFERROR(VLOOKUP(B83,$B$13:$D$54,2,FALSE),\"\")","v":"Road Plans"},"253-278, 281-282, 285, 290-292, 294, 297-299, 305-312, 317-324, 327, 329, 332, 334"]
[null,null,{"$f":"IFERROR(VLOOKUP(B84,$B$13:$D$54,2,FALSE),\"\")","v":""}]
[null,null,""]
[null,null,""]
[null,null,""]
[null,null,""]
[null,null,""]
[null,null,""]
[null,null,""]
[null,null,""]
[null,"The listed files have been prepared for the Michigan Department of Transportation by:"]
[]
[]
[]
[]
[null,"Logo"]
[]
[]
[null,null,"Andrew P. Kilpatrick, Project Manager"]
[null,null,"44978 Ford Road, Ste A"]
[null,null,"Canton, MI 48187"]
[null,null,"734-454-7566"]
[]
[null,"File Name","Description","Notes",null,"GeoTran 536-538"]
[null,"113552_Road_4.pdf",{"$f":"IFERROR(VLOOKUP(B107,$B$13:$D$54,2,FALSE),\"\")","v":"Road Plans"},"536-538"]
[null,null,{"$f":"IFERROR(VLOOKUP(B108,$B$13:$D$54,2,FALSE),\"\")","v":""}]
[null,null,""]
[null,null,""]
[null,null,""]
[null,null,""]
[null,null,""]
[null,null,""]
[null,null,""]
[null,null,""]
[null,"The listed files have been prepared for the Michigan Department of Transportation by:"]
[]
[]
[]
[]
[null,"Logo"]
[]
[]
[null,null,"Tanweer H. Shah, Project Manager"]
[null,null,"10315 E. Grand River, Suite 201"]
[null,null,"Brighton, MI 48116"]
[null,null,"810-229-6805"]
[]
[null,"File Name","Description","Notes",null,"HNTB 61-66, 68-71, 74-75"]
[null,"113552_Road_1.pdf",{"$f":"IFERROR(VLOOKUP(B131,$B$13:$D$54,2,FALSE),\"\")","v":"Road Plans"},"61-66, 68-71, 74-75"]
[null,null,{"$f":"IFERROR(VLOOKUP(B132,$B$13:$D$54,2,FALSE),\"\")","v":""}]
[null,null,""]
[null,null,""]
[null,null,""]
[null,null,""]
[null,null,""]
[null,null,""]
[null,null,""]
[null,null,""]
[null,"The listed files have been prepared for the Michigan Department of Transportation by:"]
[]
[]
[]
[]
[null,"Logo"]
[]
[]
[null,null,"Eric R. Polvi, Project Manager"]
[null,null,"3031 West Grand Boulevard, Suite 236"]
[null,null,"Detroit, MI 48202"]
[null,null,"313-316-6366"]
[]
[null,"File Name","Description","Notes",null,"OHM - Bridge"]
[null,"113552_Bridge_2.pdf",{"$f":"IFERROR(VLOOKUP(B155,$B$13:$D$54,2,FALSE),\"\")","v":"Bridge Plans"}]
[null,null,{"$f":"IFERROR(VLOOKUP(B156,$B$13:$D$54,2,FALSE),\"\")","v":""}]
[null,null,""]
[null,null,""]
[null,null,""]
[null,null,""]
[null,null,""]
[null,null,""]
[null,null,""]
[null,null,""]
[null,"The listed files have been prepared for the Michigan Department of Transportation by:"]
[]
[]
[]
[]
[null,"Logo"]
[]
[]
[null,null,"Allan C Bedford, Sr Project Engineer"]
[null,null,"34000 Plymouth Road"]
[null,null,"Livonia, MI  48150"]
[null,null,"734-522-6711"]
[]
[null,"File Name","Description","Notes",null,"OHM - Road 23-36, 72-73, 113-191, 202-223, 227-239, 241-252, 370-380, "]
[null,"113552_Road_1.pdf",{"$f":"IFERROR(VLOOKUP(B179,$B$13:$D$54,2,FALSE),\"\")","v":"Road Plans"},"23-36, 72-73, 113-191"]
[null,"113552_Road_2.pdf",{"$f":"IFERROR(VLOOKUP(B180,$B$13:$D$54,2,FALSE),\"\")","v":"Road Plans"},"202-223, 227-239, 241-252"]
[null,"113552_Road_3.pdf","Road Plans","370-380"]
[null,null,""]
[null,null,""]
[null,null,""]
[null,null,""]
[null,null,""]
[null,null,""]
[null,null,""]
[null,"The listed files have been prepared for the Michigan Department of Transportation by:"]
[]
[]
[]
[]
[null,"Logo"]
[]
[]
[null,null,"Scott J. Emmons, Project Manager"]
[null,null,"34000 Plymouth Road"]
[null,null,"Livonia, MI  48150"]
[null,null,"734-522-6711"]
[]
[null,"File Name","Description","Notes",null,"RSE 407-436, "]
[null,"113552_Road_3.pdf",{"$f":"IFERROR(VLOOKUP(B203,$B$13:$D$54,2,FALSE),\"\")","v":"Road Plans"},"407-436"]
[null,null,{"$f":"IFERROR(VLOOKUP(B204,$B$13:$D$54,2,FALSE),\"\")","v":""}]
[null,null,""]
[null,null,""]
[null,null,""]
[null,null,""]
[null,null,""]
[null,null,""]
[null,null,""]
[null,null,""]
[null,"The listed files have been prepared for the Michigan Department of Transportation by:"]
[]
[]
[]
[]
[null,"Logo"]
[]
[]
[null,null,"Shawn L. Kraus, Project Manager"]
[null,null,"6709 Centurion Drive, Suite 300"]
[null,null,"Lansing, MI 48917"]
[null,null,"517-908-0877"]
[]
[null,"File Name","Description","Notes",null,"Somat - Soil Boring Data 175-180"]
[null,"113552_Bridge_2.pdf",{"$f":"IFERROR(VLOOKUP(B227,$B$13:$D$54,2,FALSE),\"\")","v":"Bridge Plans"},"Soil Boring Data - 175-180"]
[null,null,{"$f":"IFERROR(VLOOKUP(B228,$B$13:$D$54,2,FALSE),\"\")","v":""}]
[null,null,""]
[null,null,""]
[null,null,""]
[null,null,""]
[null,null,""]
[null,null,""]
[null,null,""]
[null,null,""]
[null,"The listed files have been prepared for the Michigan Department of Transportation by:"]
[]
[]
[]
[]
[null,"Logo"]
[]
[]
[null,null,"Jonathan D. Zaremski, P.E. - Project Manager"]
[null,null,"3031 W. Grand Blvd, Ste 228"]
[null,null,"Detroit, Michigan 48202"]
[null,null,"313-963-2721"]
[]
[null,"File Name","Description","Notes",null,"Spalding DeDecker 387-391, 397, "]
[null,"113552_Road_3.pdf",{"$f":"IFERROR(VLOOKUP(B251,$B$13:$D$54,2,FALSE),\"\")","v":"Road Plans"},"387-391, 397"]
[null,null,{"$f":"IFERROR(VLOOKUP(B252,$B$13:$D$54,2,FALSE),\"\")","v":""}]
[null,null,""]
[null,null,""]
[null,null,""]
[null,null,""]
[null,null,""]
[null,null,""]
[null,null,""]
[null,null,""]
[null,"The listed files have been prepared for the Michigan Department of Transportation by:"]
[]
[]
[]
[]
[null,"Logo"]
[]
[]
[null,null,"Larry D. Dropiewski, Project Manager"]
[null,null,"905 South Boulevard E."]
[null,null,"Rochester Hills, MI 48307"]
[null,null,"248-844-5400"]
[]
[null,"File Name","Description","Notes",null,"Tetra Tech 199-201, 359, 496-532"]
[null,"113552_Road_1.pdf",{"$f":"IFERROR(VLOOKUP(B275,$B$13:$D$54,2,FALSE),\"\")","v":"Road Plans"},"199-201"]
[null,"113552_Road_2.pdf",{"$f":"IFERROR(VLOOKUP(B276,$B$13:$D$54,2,FALSE),\"\")","v":"Road Plans"},359]
[null,"113552_Road_4.pdf","Road Plans","496-532"]
[null,null,""]
[null,null,""]
[null,null,""]
[null,null,""]
[null,null,""]
[null,null,""]
[null,null,""]
[null,"The listed files have been prepared for the Michigan Department of Transportation by:"]
[]
[]
[]
[]
[null,"Logo"]
[]
[]
[null,null,"Kenneth M. Mazurek, Project Manager"]
[null,null,"7927 Nemco Way, Suite 100"]
[null,null,"Brighton, MI  48116"]
[null,null,"810-225-8418"]
[]
[null,"File Name","Description","Notes",null,"Tyme 449-495"]
[null,"113552_Road_3.pdf",{"$f":"IFERROR(VLOOKUP(B299,$B$13:$D$54,2,FALSE),\"\")","v":"Road Plans"},"449-495"]
[null,null,{"$f":"IFERROR(VLOOKUP(B300,$B$13:$D$54,2,FALSE),\"\")","v":""}]
[null,null,""]
[null,null,""]
[null,null,""]
[null,null,""]
[null,null,""]
[null,null,""]
[null,null,""]
[null,null,""]
[null,"The listed files have been prepared for the Michigan Department of Transportation by:"]
[]
[]
[]
[]
[null,"Logo"]
[]
[]
[null,null,"Erica Rowley, Project Manager"]
[null,null,"32121 Schoolcraft Rd."]
[null,null,"Livonia, MI 48150"]
[null,null,"734-522-0300"]
[]
[null,"File Name","Description","Notes",null,"Advanced Geomatics"]
[null,"113552_Road_1.pdf",{"$f":"IFERROR(VLOOKUP(B323,$B$13:$D$54,2,FALSE),\"\")","v":"Road Plans"},"47-60"]
[null,null,{"$f":"IFERROR(VLOOKUP(B324,$B$13:$D$54,2,FALSE),\"\")","v":""},{"$f":"IFERROR(IF(ISBLANK(VLOOKUP(B324,$B$13:$D$54,3,FALSE)),\"\",VLOOKUP(B324,$B$13:$D$54,3,FALSE)),\"\")","v":""}]
[null,null,"",""]
[null,null,"",""]
[null,null,"",""]
[null,null,"",""]
[null,null,"",""]
[null,null,"",""]
[null,null,"",""]
[null,null,"",""]
[null,"The listed files have been prepared for the Michigan Department of Transportation by:"]
[]
[]
[]
[]
[]
[]
[]
[null,null,"Amy C. Feindt, Project Manager"]
[null,null,"48800 W. 10 Mile Rd"]
[null,null,"Novi, MI 48374"]
[null,null,"(248) 344-2077"]
[]
[null,"File Name","Description","Notes"]
[null,null,{"$f":"IFERROR(VLOOKUP(B347,$B$13:$D$54,2,FALSE),\"\")","v":""},{"$f":"IFERROR(IF(ISBLANK(VLOOKUP(B347,$B$13:$D$54,3,FALSE)),\"\",VLOOKUP(B347,$B$13:$D$54,3,FALSE)),\"\")","v":""}]
[null,null,{"$f":"IFERROR(VLOOKUP(B348,$B$13:$D$54,2,FALSE),\"\")","v":""},{"$f":"IFERROR(IF(ISBLANK(VLOOKUP(B348,$B$13:$D$54,3,FALSE)),\"\",VLOOKUP(B348,$B$13:$D$54,3,FALSE)),\"\")","v":""}]
[null,null,"",""]
[null,null,"",""]
[null,null,"",""]
[null,null,"",""]
[null,null,"",""]
[null,null,"",""]
[null,null,"",""]
[null,null,"",""]
[null,"The listed files have been prepared for the Michigan Department of Transportation by:"]
[]
[]
[]
[]
[]
[]
[]
[null,null,"XXXXXXXXXXXXXXXXXX, Project Manager"]
[null,null,"Consultant"]
[null,null,"Address"]
[null,null,"Info"]
[]
[null,"File Name","Description","Notes"]
[null,null,{"$f":"IFERROR(VLOOKUP(B371,$B$13:$D$54,2,FALSE),\"\")","v":""},{"$f":"IFERROR(IF(ISBLANK(VLOOKUP(B371,$B$13:$D$54,3,FALSE)),\"\",VLOOKUP(B371,$B$13:$D$54,3,FALSE)),\"\")","v":""}]
[null,null,{"$f":"IFERROR(VLOOKUP(B372,$B$13:$D$54,2,FALSE),\"\")","v":""},{"$f":"IFERROR(IF(ISBLANK(VLOOKUP(B372,$B$13:$D$54,3,FALSE)),\"\",VLOOKUP(B372,$B$13:$D$54,3,FALSE)),\"\")","v":""}]
[null,null,"",""]
[null,null,"",""]
[null,null,"",""]
[null,null,"",""]
[null,null,"",""]
[null,null,"",""]
[null,null,"",""]
[null,null,"",""]
[null,"The listed files have been prepared for the Michigan Department of Transportation by:"]
[]
[]
[]
[]
[]
[]
[]
[null,null,"XXXXXXXXXXXXXXXXXX, Project Manager"]
[null,null,"Consultant"]
[null,null,"Address"]
[null,null,"Info"]
[]
[null,"File Name","Description","Notes"]
[null,null,{"$f":"IFERROR(VLOOKUP(B395,$B$13:$D$54,2,FALSE),\"\")","v":""},{"$f":"IFERROR(IF(ISBLANK(VLOOKUP(B395,$B$13:$D$54,3,FALSE)),\"\",VLOOKUP(B395,$B$13:$D$54,3,FALSE)),\"\")","v":""}]
[null,null,{"$f":"IFERROR(VLOOKUP(B396,$B$13:$D$54,2,FALSE),\"\")","v":""},{"$f":"IFERROR(IF(ISBLANK(VLOOKUP(B396,$B$13:$D$54,3,FALSE)),\"\",VLOOKUP(B396,$B$13:$D$54,3,FALSE)),\"\")","v":""}]
[null,null,"",""]
[null,null,"",""]
[null,null,"",""]
[null,null,"",""]
[null,null,"",""]
[null,null,"",""]
[null,null,"",""]
[null,null,"",""]
[null,"The listed files have been prepared for the Michigan Department of Transportation by:"]
[]
[]
[]
[]
[]
[]
[]
[null,null,"XXXXXXXXXXXXXXXXXX, Project Manager"]
[null,null,"Consultant"]
[null,null,"Address"]
[null,null,"Info"]
[]
[null,"Representative Signatures"]
[null,"The above documents are submitted for approval by:"]
[]
[]
[]
[]
[]
[null,null,"Terry A. Stepanski, PE - Road Project Manager"]
[]
[]
[]
[]
[]
[]
[null,null,"Melissa Donoso, PE - Bridge Project Manager"]
[]
[]
[]
[]
[]
[]
[null,null,"Aaron Mattson, PE - Bridge Project Manager"]
[]
[]
[]
[]
[]
[]
[null,null,"Andrea Wilcox, PE - Detroit TSC Projects & Contracts Administration Engineer"]
[]
[]
[]
[]
[]
[]
[null,null,"XXXXXXXXXXXXXXXXXX"]
[]
[]
[]
[]
[]
[]
[null,null,"XXXXXXXXXXXXXXXXXX"]
[]
[]
[]
[]
[]
[]
[null,null,"XXXXXXXXXXXXXXXXXX"]
[]
[]
[]
[]
[]
[]
[null,null,"XXXXXXXXXXXXXXXXXX"]
[]
[]
[]
[]
[]
[]
[null,null,"XXXXXXXXXXXXXXXXXX"]
[]
[]
[]
[]
[]
[]
[null,null,"XXXXXXXXXXXXXXXXXX"]

{"sheet":"Sheet1","index":1,"n_rows":0,"n_cols":0,"rows_kept":0,"cut":false,"hidden":false,"merged":[]}